bitfinex-derivatives/quotes_BTCF0:USTF0_20241110
["timestamp","ask_amount","ask_price","bid_price","bid_amount"]
[1731210531666,0.01714871,77323.0,77322.0,0.0644]
[1731210533665,0.032313,77324.0,77322.0,0.0644]
[1731210535263,0.01720957,77323.0,77322.0,0.0644]
[1731210538363,0.01720957,77323.0,77322.0,0.11577427]
[1731210538670,0.01720957,77323.0,77322.0,0.0644]
[1731210539560,0.01720957,77323.0,77322.0,0.11577427]
[1731210540070,0.03231,77332.0,77322.0,0.11577427]
[1731210540263,0.086916,77326.0,77325.0,0.3608]
[1731210540564,0.086916,77326.0,77325.0,0.5467304]
[1731210540956,0.032307,77338.0,77327.0,0.032312]
[1731210541160,0.37724566,77339.0,77334.0,0.05136691]
[1731210541359,0.37656566,77339.0,77338.0,0.03852359]
[1731210541567,0.37656566,77339.0,77335.0,0.08196691]
[1731210542271,0.37656566,77339.0,77338.0,0.03852277]
[1731210542471,0.37656566,77339.0,77335.0,0.08196691]
[1731210542764,0.086916,77336.0,77335.0,0.08196691]
[1731210543269,0.086916,77336.0,77335.0,0.0306]
[1731210554173,0.03231,77332.0,77330.0,0.0328]
[1731210554374,0.10412282,77331.0,77330.0,0.0328]
[1731210559483,0.11970885,77331.0,77330.0,0.0328]
[1731210566181,0.15201985,77331.0,77328.0,0.10328]
[1731210566480,0.032312,77328.0,77326.0,0.13526]
[1731210566777,0.01720682,77327.0,77326.0,0.19782863]
[1731210566971,0.01720682,77327.0,77326.0,0.13362]
[1731210567169,0.01720682,77327.0,77326.0,0.64101296]
[1731210567875,0.01720682,77327.0,77326.0,0.57680433]
[1731210568071,0.01720682,77327.0,77326.0,0.57680613]
[1731210569478,0.032312,77328.0,77326.0,0.57680613]
[1731210569778,0.032312,77328.0,77327.0,0.08238613]
[1731210570486,0.032312,77328.0,77326.0,0.56037232]
[1731210570676,0.032312,77328.0,77326.0,0.55865232]
[1731210571276,0.032312,77328.0,77326.0,0.13362]
[1731210571974,0.032312,77328.0,77326.0,0.49442]
[1731210572280,0.032312,77328.0,77326.0,0.55865232]
[1731210574082,0.032312,77328.0,77326.0,0.19785232]
[1731210574284,0.032312,77328.0,77326.0,0.55865232]
[1731210575679,0.032312,77328.0,77327.0,0.06423232]
[1731210575873,0.04938045,77328.0,77327.0,0.06423232]
[1731210576278,0.04938045,77328.0,77327.0,0.14670164]
[1731210576682,0.032312,77328.0,77327.0,0.14670164]
[1731210577680,0.04936098,77328.0,77327.0,0.06423232]
[1731210577988,0.04936098,77328.0,77327.0,0.14669016]
[1731210578591,0.032312,77328.0,77327.0,0.14669016]
[1731210578887,0.086916,77329.0,77327.0,0.14669016]
[1731210579189,0.086916,77329.0,77328.0,0.06423232]
[1731210579779,0.086916,77329.0,77328.0,0.14661544]
[1731210579980,0.086916,77329.0,77327.0,0.03854274]
[1731210580276,0.38734864,77338.0,77327.0,0.03854274]
[1731210580277,0.36148,77338.0,77332.0,0.03231]
[1731210580483,0.086916,77336.0,77334.0,0.393109]
[1731210580682,0.086916,77336.0,77335.0,0.0315]
[1731210580983,0.20614,77336.0,77335.0,0.13462]
[1731210581186,0.119224,77336.0,77335.0,0.03852186]
[1731210581395,0.119224,77336.0,77334.0,0.46556]
[1731210581575,0.119224,77336.0,77334.0,0.46392]
[1731210581780,0.119224,77336.0,77334.0,0.10312]
[1731210581980,0.119224,77336.0,77333.0,0.14164186]
[1731210582590,0.119224,77336.0,77333.0,0.10312]
[1731210583283,0.086916,77336.0,77327.0,0.06461]
[1731210583478,0.032309,77335.0,77328.0,0.10312]
[1731210584694,0.032309,77335.0,77330.0,0.03853424]
[1731210584896,0.086916,77331.0,77330.0,0.03853424]
[1731210587692,0.086916,77331.0,77329.0,0.3608]
[1731210589193,0.086916,77331.0,77328.0,0.10312]
[1731210589890,0.086916,77331.0,77329.0,0.08412241]
[1731210590293,0.03231,77333.0,77329.0,0.08412241]
[1731210590494,0.086916,77330.0,77329.0,0.08412241]
[1731210590892,0.173832,77330.0,77329.0,0.08412241]
[1731210591085,0.206143,77330.0,77329.0,0.08412241]
[1731210591284,0.206143,77330.0,77329.0,0.13553479]
[1731210591484,0.206143,77330.0,77329.0,0.08412241]
[1731210591685,0.206143,77330.0,77329.0,0.13553479]
[1731210593292,0.206143,77330.0,77329.0,0.08412241]
[1731210594795,0.173832,77330.0,77327.0,0.05141238]
[1731210594990,0.032312,77328.0,77323.0,0.06422374]
[1731210595294,0.086916,77324.0,77323.0,0.06422374]
[1731210595698,0.086916,77324.0,77323.0,0.08551403]
[1731210597401,0.086916,77324.0,77323.0,0.14977352]
[1731210598492,0.086916,77324.0,77323.0,0.14977996]
[1731210599002,0.086916,77324.0,77322.0,0.06425949]
[1731210599405,0.086916,77324.0,77323.0,0.14977664]
[1731210600704,0.3608,77333.0,77324.0,0.06461]
[1731210600899,0.086916,77330.0,77327.0,0.06422538]
[1731210601099,0.086916,77330.0,77329.0,0.06422538]
[1731210601302,0.086916,77330.0,77329.0,0.08533971]
[1731210601507,0.086916,77330.0,77329.0,0.14633971]
[1731210602608,0.086916,77330.0,77329.0,0.31337809]
[1731210602805,0.086916,77330.0,77329.0,0.16396]
[1731210603401,0.086916,77330.0,77329.0,0.061]
[1731210603604,0.173832,77330.0,77329.0,0.13336]
[1731210604001,0.086916,77330.0,77329.0,0.13336]
[1731210604199,0.173832,77330.0,77329.0,0.13336]
[1731210604601,0.086916,77330.0,77329.0,0.13336]
[1731210604902,0.173832,77330.0,77329.0,0.13336]
[1731210606503,0.173832,77330.0,77329.0,0.0304]
[1731210607913,0.086916,77330.0,77329.0,0.0304]
[1731210609402,0.173832,77330.0,77329.0,0.0304]
[1731210609606,0.086916,77330.0,77329.0,0.0304]
[1731210611011,0.173832,77330.0,77329.0,0.0304]
[1731210612912,0.086916,77330.0,77329.0,0.0304]
[1731210613124,0.173832,77330.0,77329.0,0.0304]
[1731210615323,0.206143,77330.0,77326.0,0.06421575]
[1731210616721,0.032312,77326.0,77312.0,0.07706849]
[1731210617019,0.032313,77324.0,77323.0,0.05141582]
[1731210617209,0.0305,77325.0,77320.0,0.05141582]
[1731210617410,0.032316,77318.0,77317.0,0.05141582]
[1731210617615,0.032316,77318.0,77316.0,0.05141582]
[1731210617616,0.393116,77318.0,77316.0,0.05141582]
[1731210617809,0.032318,77313.0,77312.0,0.10296]
[1731210618008,0.20615,77313.0,77312.0,0.10296]
[1731210619412,0.20615,77313.0,77311.0,0.00193991]
[1731210620310,0.032318,77313.0,77307.0,0.10296]
[1731210620618,0.086916,77308.0,77307.0,0.10296]
[1731210621020,0.086916,77308.0,77304.0,0.08051889]
[1731210621220,0.086916,77308.0,77305.0,0.10296]
[1731210621515,0.119237,77306.0,77305.0,0.06461]
[1731210621716,0.3608,77318.0,77305.0,0.539606]
[1731210621921,0.3608,77318.0,77303.0,0.10296]
[1731210621922,0.032314,77322.0,77314.0,0.06461]
[1731210622109,0.032316,77319.0,77312.0,0.10296]
[1731210622315,0.032317,77316.0,77312.0,0.10296]
[1731210623019,0.173832,77313.0,77312.0,0.10296]
[1731210624221,0.03232,77309.0,77307.0,0.06461]
[1731210624417,0.03232,77307.0,77306.0,0.06461]
[1731210625915,0.086916,77307.0,77298.0,0.05141582]
[1731210626218,0.173832,77301.0,77296.0,0.05141582]
[1731210626413,0.086916,77301.0,77295.0,0.21890582]
[1731210627214,0.086916,77301.0,77295.0,0.1028]
[1731210627614,0.086916,77301.0,77297.0,0.3608]
[1731210627821,0.086916,77301.0,77294.0,0.15421582]
[1731210628020,0.086916,77301.0,77297.0,0.3608]
[1731210631021,0.086916,77301.0,77294.0,0.1028]
[1731210631624,0.173832,77301.0,77294.0,0.1028]
[1731210631829,0.173832,77301.0,77291.0,0.0321]
[1731210632028,0.173832,77301.0,77292.0,0.1028]
[1731210632220,0.173832,77301.0,77293.0,0.06469]
[1731210635733,0.173832,77301.0,77292.0,0.06469]
[1731210641327,0.032326,77293.0,77291.0,0.0321]
[1731210641525,0.119242,77293.0,77291.0,0.0321]
[1731210642825,0.032327,77291.0,77289.0,0.06469]
[1731210643129,0.086916,77290.0,77289.0,0.06469]
[1731210643529,0.086916,77290.0,77288.0,0.06469]
[1731210643726,0.119244,77290.0,77288.0,0.06469]
[1731210644725,0.032328,77290.0,77286.0,0.06469]
[1731210644928,0.086916,77290.0,77286.0,0.06469]
[1731210646135,0.086916,77290.0,77285.0,0.05335638]
[1731210646136,0.032328,77289.0,77288.0,0.06469]
[1731210646335,0.119244,77289.0,77288.0,0.06469]
[1731210647328,0.119244,77289.0,77288.0,0.42549]
[1731210648034,0.032325,77296.0,77288.0,0.42549]
[1731210648235,0.086916,77292.0,77291.0,0.11607716]
[1731210648535,0.032325,77296.0,77291.0,0.11607716]
[1731210648728,0.086916,77292.0,77291.0,0.11607716]
[1731210650331,0.086916,77292.0,77289.0,0.06469]
[1731210652937,0.086916,77293.0,77289.0,0.06469]
[1731210653139,0.086916,77293.0,77291.0,0.06469]
[1731210654039,0.119242,77293.0,77291.0,0.06469]
[1731210654339,0.119242,77293.0,77291.0,0.12891645]
[1731210655040,0.119242,77293.0,77289.0,0.06469]
[1731210655728,0.032327,77292.0,77289.0,0.06469]
[1731210656129,0.032327,77292.0,77288.0,0.06469]
[1731210656340,0.032327,77292.0,77290.0,0.06469]
[1731210658031,0.086916,77291.0,77290.0,0.06469]
[1731210662036,0.086916,77291.0,77289.0,0.06469]
[1731210662250,0.086916,77291.0,77289.0,0.42549]
[1731210662933,0.086916,77291.0,77290.0,0.08519834]
[1731210663640,0.086916,77291.0,77290.0,0.18783834]
[1731210663841,0.032327,77290.0,77289.0,0.06448286]
[1731210664044,0.119243,77290.0,77289.0,0.14989337]
[1731210664340,0.119243,77290.0,77289.0,0.14989906]
[1731210664642,0.119243,77290.0,77289.0,0.06448286]
[1731210664834,0.119243,77290.0,77288.0,0.06448286]
[1731210665035,0.119243,77290.0,77289.0,0.15040938]
[1731210665440,0.119243,77290.0,77289.0,0.15042308]
[1731210665639,0.119243,77290.0,77289.0,0.1504239]
[1731210666039,0.119243,77290.0,77289.0,0.08592652]
[1731210666441,0.119243,77290.0,77288.0,0.06450426]
[1731210666641,0.119516,77289.0,77288.0,0.06450426]
[1731210666838,0.0326,77289.0,77288.0,0.06450426]
[1731210667044,0.119516,77289.0,77288.0,0.06450426]
[1731210667238,0.119516,77289.0,77288.0,0.15038982]
[1731210667436,0.119516,77289.0,77288.0,0.06450426]
[1731210668032,0.119516,77289.0,77288.0,0.08591369]
[1731210668446,0.119516,77289.0,77288.0,0.1503859]
[1731210668833,0.119516,77289.0,77287.0,0.06447221]
[1731210669037,0.119516,77289.0,77288.0,0.15037529]
[1731210669238,0.119516,77289.0,77288.0,0.06447221]
[1731210669441,0.119516,77289.0,77288.0,0.08586057]
[1731210669940,0.119516,77289.0,77287.0,0.05156787]
[1731210671542,0.119516,77289.0,77288.0,0.05156787]
[1731210678054,0.119516,77289.0,77288.0,0.08533981]
[1731210678853,0.0326,77289.0,77288.0,0.08533981]
[1731210679060,0.119516,77289.0,77288.0,0.08533981]
[1731210680263,0.0326,77289.0,77288.0,0.08533981]
[1731210680448,0.086916,77289.0,77288.0,0.15002981]
[1731210681265,0.032322,77304.0,77292.0,0.06469]
[1731210681560,0.119238,77304.0,77301.0,0.06444593]
[1731210682152,0.119238,77304.0,77300.0,0.16708593]
[1731210682753,0.13487993,77304.0,77300.0,0.16708593]
[1731210683565,0.13487993,77304.0,77300.0,0.10264]
[1731210684269,0.10255793,77304.0,77300.0,0.16708593]
[1731210684769,0.10255793,77304.0,77300.0,0.10264]
[1731210684955,0.086916,77304.0,77300.0,0.16708593]
[1731210685259,0.0311,77309.0,77302.0,0.032322]
[1731210685453,0.0311,77309.0,77305.0,0.05150322]
[1731210686162,0.086916,77306.0,77305.0,0.05150322]
[1731210686558,0.086916,77306.0,77302.0,0.032322]
[1731210686559,0.086916,77306.0,77304.0,0.05150322]
[1731210687358,0.086916,77306.0,77305.0,0.10248]
[1731210697767,0.0008,77313.0,77311.0,0.032318]
[1731210697969,0.086916,77315.0,77313.0,0.032318]
[1731210698574,0.00194126,77317.0,77309.0,0.447716]
[1731210698776,0.00194126,77317.0,77315.0,0.032317]
[1731210698976,0.00194126,77317.0,77316.0,0.0321]
[1731210699868,0.00194126,77317.0,77316.0,0.3929]
[1731210700363,0.00194126,77317.0,77316.0,0.45734593]
[1731210700565,0.00194126,77317.0,77316.0,0.3929]
[1731210701173,0.00194126,77317.0,77316.0,0.45734593]
[1731210701372,0.00194126,77317.0,77316.0,0.47355]
[1731210701578,0.00194126,77317.0,77316.0,0.40910407]
[1731210704574,0.086916,77320.0,77316.0,0.40910407]
[1731210704777,0.086916,77320.0,77317.0,0.032316]
[1731210705167,0.086916,77320.0,77318.0,0.032315]
[1731210708182,0.086916,77320.0,77319.0,0.10244]
[1731210709285,0.086916,77320.0,77318.0,0.032315]
[1731210709576,0.086916,77320.0,77319.0,0.10244]
[1731210710676,0.086916,77320.0,77319.0,0.3608]
[1731210710880,0.086916,77320.0,77313.0,0.10244]
[1731210710881,0.534632,77320.0,77313.0,0.10244]
[1731210711078,0.173832,77314.0,77310.0,0.10244]
[1731210711383,0.173832,77311.0,77308.0,0.3608]
[1731210711680,0.0303,77310.0,77309.0,0.10244]
[1731210713470,0.3608,77320.0,77309.0,0.10244]
[1731210713670,0.01581058,77323.0,77317.0,0.3608]
[1731210713875,0.086916,77320.0,77318.0,0.10244]
[1731210714874,0.086916,77319.0,77317.0,0.3608]
[1731210715083,0.119232,77319.0,77318.0,0.10228]
[1731210715281,0.032316,77319.0,77318.0,0.10228]
[1731210716182,0.032316,77319.0,77317.0,0.3608]
[1731210717189,0.032316,77318.0,77311.0,0.10228]
[1731210717479,0.13550218,77312.0,77307.0,0.05136085]
[1731210717680,0.13550218,77312.0,77308.0,0.10228]
[1731210718287,0.13550218,77312.0,77307.0,0.10228]
[1731210721280,0.15099879,77312.0,77307.0,0.10228]
[1731210722280,0.15099879,77312.0,77306.0,0.05136085]
[1731210722482,0.01549661,77312.0,77306.0,0.05136085]
[1731210722687,0.19930218,77317.0,77308.0,0.05136085]
[1731210723187,0.13550218,77311.0,77306.0,0.032321]
[1731210728588,0.16660218,77317.0,77309.0,0.3608]
[1731210728793,0.16660218,77317.0,77311.0,0.032319]
[1731210730192,0.16660218,77317.0,77313.0,0.05136085]
[1731210730781,0.16660218,77317.0,77312.0,0.05136085]
[1731210731390,0.16660218,77317.0,77313.0,0.05136085]
[1731210731783,0.16660218,77317.0,77314.0,0.05136085]
[1731210732695,0.16660218,77317.0,77312.0,0.05136085]
[1731210732897,0.16660218,77317.0,77314.0,0.05136085]
[1731210733084,0.16660218,77317.0,77311.0,0.032319]
[1731210733085,0.16660218,77317.0,77313.0,0.05136085]
[1731210733288,0.16660218,77317.0,77311.0,0.032319]
[1731210733289,0.16660218,77317.0,77314.0,0.05136085]
[1731210733696,0.032315,77320.0,77315.0,0.10228]
[1731210733892,0.0302,77323.0,77315.0,0.10228]
[1731210734083,0.0302,77323.0,77316.0,0.05136085]
[1731210734492,0.0302,77323.0,77317.0,0.05136085]
[1731210735407,0.04585255,77323.0,77316.0,0.05136085]
[1731210735694,0.04585255,77323.0,77317.0,0.05136085]
[1731210736496,0.04585255,77323.0,77318.0,0.05136085]
[1731210736698,0.04585255,77323.0,77317.0,0.05136085]
[1731210736894,0.13550218,77318.0,77317.0,0.05136085]
[1731210737392,0.08698007,77318.0,77317.0,0.05136085]
[1731210740198,0.08698007,77318.0,77317.0,0.05158299]
[1731210740404,0.08698007,77318.0,77315.0,0.10228]
[1731210741906,0.08698007,77318.0,77315.0,0.16672593]
[1731210742106,0.08698007,77318.0,77315.0,0.10228]
[1731210742298,0.08698007,77318.0,77315.0,0.16672593]
[1731210744098,0.08698007,77318.0,77315.0,0.10228]
[1731210744597,0.032317,77315.0,77312.0,0.06444593]
[1731210744820,0.08698007,77316.0,77311.0,0.16656593]
[1731210744821,0.032318,77313.0,77311.0,0.16656593]
[1731210744993,0.08698007,77312.0,77311.0,0.16656593]
[1731210745198,0.08698007,77312.0,77311.0,0.10212]
[1731210745705,0.08698007,77312.0,77310.0,0.50162941]
[1731210746905,0.08698007,77311.0,77310.0,0.50162941]
[1731210747094,0.08698007,77312.0,77310.0,0.50162941]
[1731210747903,0.11929807,77312.0,77310.0,0.39950941]
[1731210749206,0.08698007,77311.0,77310.0,0.39950941]
[1731210750694,0.08698007,77311.0,77310.0,0.3608]
[1731210750903,0.08698007,77311.0,77310.0,0.39950941]
[1731210751201,0.08698007,77311.0,77310.0,0.03870941]
[1731210751404,0.08698007,77311.0,77309.0,0.39950941]
[1731210751597,0.13511632,77312.0,77309.0,0.39950941]
[1731210751598,0.032318,77312.0,77309.0,0.39950941]
[1731210751807,0.08698007,77312.0,77309.0,0.39950941]
[1731210752300,0.08698007,77312.0,77310.0,0.03870941]
[1731210753113,0.08698007,77312.0,77311.0,0.03870941]
[1731210753315,0.08698007,77312.0,77311.0,0.16318983]
[1731210754816,0.08698007,77312.0,77311.0,0.08585471]
[1731210755212,0.08698007,77312.0,77311.0,0.16318983]
[1731210755906,0.08698007,77312.0,77311.0,0.08585471]
[1731210757915,0.02587419,77323.0,77311.0,0.08585471]
[1731210758117,0.08698007,77317.0,77316.0,0.06448832]
[1731210758312,0.08698007,77317.0,77316.0,0.14994831]
[1731210758505,0.08698007,77317.0,77316.0,0.08546277]
[1731210759313,0.04819966,77323.0,77316.0,0.14994677]
[1731210759513,0.08698007,77319.0,77318.0,0.064484]
[1731210759714,0.08698007,77319.0,77318.0,0.25207922]
[1731210759912,0.08698007,77319.0,77318.0,0.18759522]
[1731210760116,0.08698007,77319.0,77318.0,0.25207306]
[1731210760314,0.08698007,77319.0,77318.0,0.10212]
[1731210760819,0.08698007,77319.0,77318.0,0.14080495]
[1731210761009,0.08698007,77319.0,77318.0,0.14080479]
[1731210761412,0.08698007,77319.0,77318.0,0.10212]
[1731210761815,0.08698007,77319.0,77318.0,0.14080041]
[1731210762409,0.08698007,77319.0,77318.0,0.10212]
[1731210763109,0.08698007,77325.0,77318.0,0.10212]
[1731210763311,0.08698007,77320.0,77318.0,0.10212]
[1731210765619,0.08698007,77320.0,77318.0,0.14079669]
[1731210767225,0.08698007,77320.0,77318.0,0.10212]
[1731210768627,0.08698007,77320.0,77318.0,0.16659784]
[1731210770925,0.08698007,77320.0,77318.0,0.10212]
[1731210773423,0.11929507,77320.0,77318.0,0.10212]
[1731210777523,0.44778007,77319.0,77312.0,0.06447784]
[1731210777819,0.44778007,77319.0,77314.0,0.05155651]
[1731210777820,0.0323,77319.0,77314.0,0.05155651]
[1731210778116,0.032317,77315.0,77314.0,0.05155651]
[1731210778723,0.032317,77315.0,77313.0,0.15351651]
[1731210778911,0.08698007,77314.0,77313.0,0.15351651]
[1731210779626,0.08698007,77314.0,77313.0,0.10196]
[1731210779921,0.08698007,77314.0,77313.0,0.15351651]
[1731210780524,0.08698007,77314.0,77313.0,0.10196]
[1731210782217,0.11929807,77314.0,77312.0,0.10196]
[1731210785322,0.11929807,77314.0,77309.0,0.3608]
[1731210785519,0.032318,77314.0,77311.0,0.10196]
[1731210787629,0.08698007,77312.0,77311.0,0.10196]
[1731210790523,0.08698007,77312.0,77311.0,0.15351651]
[1731210791031,0.08698007,77312.0,77311.0,0.10196]
[1731210793129,0.08698007,77312.0,77311.0,0.15346215]
[1731210793628,0.11929807,77312.0,77311.0,0.10196]
[1731210794639,0.11929807,77312.0,77309.0,0.3608]
[1731210794929,0.08698007,77310.0,77309.0,0.3608]
[1731210795125,0.08698007,77310.0,77309.0,0.46276]
[1731210795326,0.032321,77306.0,77305.0,0.10196]
[1731210795527,0.11930107,77306.0,77305.0,0.10196]
[1731210796632,0.11930107,77306.0,77300.0,0.06447784]
[1731210796929,0.032321,77306.0,77301.0,0.46276]
[1731210797435,0.032321,77306.0,77305.0,0.03863547]
[1731210798131,0.11930107,77306.0,77305.0,0.03863547]
[1731210799325,0.11930107,77306.0,77304.0,0.03863547]
[1731210800120,0.11930107,77306.0,77305.0,0.03863547]
[1731210800320,0.13484215,77306.0,77305.0,0.03863547]
[1731210800530,0.13484215,77306.0,77301.0,0.3608]
[1731210800531,0.13484215,77306.0,77304.0,0.03863547]
[1731210800725,0.032322,77302.0,77301.0,0.3608]
[1731210800930,0.11930207,77302.0,77301.0,0.3608]
[1731210801135,0.08698007,77302.0,77299.0,0.10196]
[1731210801335,0.032323,77300.0,77299.0,0.10196]
[1731210803536,0.032324,77298.0,77293.0,0.102]
[1731210803732,0.08698007,77294.0,77293.0,0.102]
[1731210804241,0.08698007,77294.0,77292.0,0.3608]
[1731210804435,0.11930507,77295.0,77293.0,0.102]
[1731210808034,0.20628514,77295.0,77293.0,0.06447784]
[1731210808246,0.20628514,77295.0,77292.0,0.44295841]
[1731210808539,0.11930507,77295.0,77292.0,0.44131841]
[1731210810643,0.11930507,77295.0,77292.0,0.37684057]
[1731210810842,0.11930507,77295.0,77292.0,0.3608]
[1731210811938,0.20628514,77295.0,77292.0,0.3608]
[1731210812133,0.20628514,77295.0,77292.0,0.42527784]
[1731210812644,0.20628514,77295.0,77292.0,0.3608]
[1731210813552,0.11930507,77295.0,77292.0,0.3608]
[1731210813938,0.0316,77305.0,77292.0,0.3608]
[1731210814147,0.08698007,77296.0,77292.0,0.39943483]
[1731210814441,0.08698007,77296.0,77293.0,0.03863483]
[1731210814635,0.08698007,77296.0,77292.0,0.3608]
[1731210814636,0.08698007,77296.0,77294.0,0.03863483]
[1731210815144,0.11930507,77296.0,77293.0,0.03863483]
[1731210815343,0.032326,77294.0,77292.0,0.39943483]
[1731210815641,0.032326,77294.0,77292.0,0.3608]
[1731210816537,0.032326,77294.0,77292.0,0.39943483]
[1731210817350,0.032326,77294.0,77292.0,0.3608]
[1731210818448,0.032326,77294.0,77292.0,0.39943483]
[1731210820647,0.032326,77294.0,77293.0,0.06447784]
[1731210821257,0.032326,77294.0,77293.0,0.15177489]
[1731210822155,0.032326,77294.0,77293.0,0.08729705]
[1731210822356,0.032326,77294.0,77293.0,0.15174772]
[1731210822740,0.032326,77294.0,77293.0,0.08729705]
[1731210822945,0.032326,77294.0,77293.0,0.1517481]
[1731210823145,0.032326,77294.0,77293.0,0.08729705]
[1731210825355,0.032326,77294.0,77293.0,0.15199648]
[1731210825660,0.032326,77294.0,77293.0,0.0875039]
[1731210825858,0.032326,77294.0,77293.0,0.15199536]
[1731210826356,0.032326,77294.0,77292.0,0.16634465]
[1731210827549,0.032326,77294.0,77292.0,0.06450465]
[1731210827751,0.032327,77292.0,77291.0,0.06450465]
[1731210827954,0.11930707,77292.0,77290.0,0.42530465]
[1731210828144,0.11930707,77292.0,77291.0,0.06450465]
[1731210829254,0.11930707,77292.0,77291.0,0.15218064]
[1731210830159,0.11930707,77292.0,77291.0,0.08767599]
[1731210830361,0.11930707,77292.0,77291.0,0.15223448]
[1731210830765,0.11930707,77292.0,77291.0,0.08767599]
[1731210831255,0.11930707,77292.0,77291.0,0.15222927]
[1731210832159,0.11930707,77292.0,77291.0,0.06455328]
[1731210833350,0.11930707,77292.0,77291.0,0.15283476]
[1731210834063,0.11930707,77292.0,77291.0,0.08828148]
[1731210834257,0.11930707,77292.0,77291.0,0.15283388]
[1731210834854,0.11930707,77292.0,77291.0,0.1528363]
[1731210835252,0.11930707,77292.0,77291.0,0.15283522]
[1731210835657,0.11930707,77292.0,77290.0,0.3608]
[1731210836459,0.11930707,77292.0,77291.0,0.03873046]
[1731210839166,0.11930707,77292.0,77290.0,0.3608]
[1731210839566,0.11930707,77292.0,77290.0,0.03872966]
[1731210839758,0.11930707,77292.0,77287.0,0.15328284]
[1731210839759,0.11930707,77292.0,77291.0,0.03872966]
[1731210839959,0.11930707,77292.0,77290.0,0.03872976]
[1731210840159,0.11930707,77292.0,77288.0,0.03872976]
[1731210840160,0.032327,77290.0,77288.0,0.03872976]
[1731210840367,0.032328,77288.0,77287.0,0.03872976]
[1731210841062,0.032328,77288.0,77286.0,0.03872976]
[1731210842677,0.08698007,77289.0,77285.0,0.06455374]
[1731210842966,0.11930907,77286.0,77285.0,0.06455374]
[1731210843156,0.03233,77285.0,77283.0,0.12924374]
[1731210843470,0.03233,77285.0,77284.0,0.15321232]
[1731210843665,0.11931007,77285.0,77284.0,0.15321232]
[1731210844269,0.03233,77285.0,77284.0,0.15321232]
[1731210845271,0.11931007,77285.0,77284.0,0.15321232]
[1731210845469,0.11931007,77285.0,77283.0,0.12924374]
[1731210845773,0.08698007,77284.0,77283.0,0.12924374]
[1731210845976,0.08698007,77284.0,77283.0,0.21790235]
[1731210846469,0.03233,77285.0,77283.0,0.21790235]
[1731210846668,0.08698007,77284.0,77283.0,0.12924374]
[1731210846867,0.08698007,77284.0,77283.0,0.15322112]
[1731210847173,0.08698007,77284.0,77283.0,0.15335738]
[1731210847660,0.032328,77290.0,77283.0,0.15335738]
[1731210847864,0.032328,77290.0,77289.0,0.05161349]
[1731210849062,0.37750612,77291.0,77285.0,0.06451687]
[1731210849063,0.032329,77288.0,77285.0,0.06451687]
[1731210849269,0.08698007,77286.0,77285.0,0.06451687]
[1731210849471,0.08698007,77286.0,77285.0,0.08850205]
[1731210850973,0.17396014,77286.0,77285.0,0.08850205]
[1731210851167,0.08698007,77286.0,77285.0,0.08850205]
[1731210851470,0.08698007,77286.0,77285.0,0.06452155]
[1731210851776,0.11930907,77286.0,77285.0,0.08864264]
[1731210853382,0.11930907,77286.0,77285.0,0.15333264]
[1731210857477,0.37750612,77291.0,77285.0,0.15333264]
[1731210857781,0.032328,77288.0,77287.0,0.03872782]
[1731210859276,0.032329,77286.0,77284.0,0.03872782]
[1731210859481,0.08698007,77285.0,77284.0,0.03872782]
[1731210860381,0.08698007,77285.0,77282.0,0.06469]
[1731210860586,0.03233,77284.0,77282.0,0.06469]
[1731210861275,0.03233,77284.0,77282.0,0.1163271]
[1731210861776,0.03233,77284.0,77282.0,0.06469]
[1731210862482,0.03233,77284.0,77281.0,0.0516371]
[1731210863267,0.03233,77284.0,77283.0,0.0516371]
[1731210863471,0.11931007,77284.0,77283.0,0.0516371]
[1731210864271,0.11931007,77284.0,77282.0,0.0516371]
[1731210865091,0.11931007,77284.0,77281.0,0.0516371]
[1731210865380,0.11931007,77284.0,77282.0,0.0516371]
[1731210865676,0.11931007,77284.0,77280.0,0.10168]
[1731210865677,0.11931007,77284.0,77283.0,0.0516371]
[1731210865872,0.11931007,77284.0,77283.0,0.08855253]
[1731210867291,0.17396014,77284.0,77283.0,0.08856745]
[1731210867587,0.11931007,77284.0,77283.0,0.08856745]
[1731210868577,0.01602612,77291.0,77283.0,0.08856745]
[1731210868783,0.032329,77287.0,77285.0,0.06458799]
[1731210869179,0.032329,77287.0,77286.0,0.06458799]
[1731210869375,0.032329,77287.0,77285.0,0.06458799]
[1731210870282,0.032329,77287.0,77284.0,0.06458799]
[1731210870482,0.08698007,77285.0,77280.0,0.10168]
[1731210870679,0.08698007,77285.0,77281.0,0.0886612]
[1731210870885,0.08698007,77285.0,77282.0,0.0886612]
[1731210871185,0.08698007,77285.0,77283.0,0.0886612]
[1731210871387,0.08698007,77285.0,77284.0,0.0886612]
[1731210871989,0.08698007,77285.0,77284.0,0.08860641]
[1731210872884,0.08698007,77285.0,77284.0,0.05167856]
[1731210873978,0.08698007,77285.0,77280.0,0.10168]
[1731210874278,0.08698007,77285.0,77284.0,0.05167247]
[1731210876392,0.11931007,77285.0,77283.0,0.05167247]
[1731210878993,0.03233,77284.0,77282.0,0.05167247]
[1731210879195,0.08698007,77283.0,77282.0,0.05167247]
[1731210880890,0.08698007,77283.0,77282.0,0.08854462]
[1731210881687,0.08698007,77283.0,77282.0,0.08842153]
[1731210885585,0.17396014,77283.0,77282.0,0.08840856]
[1731210886395,0.19002642,77283.0,77282.0,0.08840856]
[1731210886595,0.22235742,77283.0,77280.0,0.07733512]
[1731210888106,0.20629114,77283.0,77280.0,0.07733512]
[1731210888603,0.20629114,77283.0,77280.0,0.06455763]
[1731210889192,0.11931107,77283.0,77280.0,0.06455763]
[1731210889595,0.032331,77282.0,77280.0,0.06455763]
[1731210894208,0.08698007,77281.0,77280.0,0.06455763]
[1731210894509,0.08698007,77281.0,77280.0,0.15295858]
[1731210896916,0.08698007,77281.0,77280.0,0.26709607]
[1731210899416,0.08698007,77281.0,77280.0,0.18976095]
[1731210899808,0.08698007,77281.0,77280.0,0.29514336]
[1731210903217,0.032331,77282.0,77280.0,0.29514336]
[1731210903425,0.032331,77282.0,77281.0,0.08840095]
[1731210903723,0.11931107,77282.0,77280.0,0.10136]
[1731210904329,0.08698007,77281.0,77280.0,0.10136]
[1731210904826,0.11931107,77282.0,77280.0,0.10136]
[1731210905221,0.08698007,77281.0,77280.0,0.10136]
[1731210906428,0.11931107,77282.0,77280.0,0.10136]
[1731210907327,0.08698007,77281.0,77280.0,0.10136]